bitfinex-derivatives/quotes_ETHF0:USTF0_20250502
["timestamp","ask_amount","ask_price","bid_price","bid_amount"]
[1746223254579,1.08741,1838.4,1838.3,0.1936]
[1746223254784,1.0877,1837.9,1837.8,1.90384]
[1746223255085,12.25765942,1837.9,1837.8,1.90384]
[1746223255287,10.8894,1837.9,1837.8,3.49614]
[1746223255485,11.9771,1837.9,1837.8,1.90384]
[1746223255679,11.9771,1837.9,1837.8,0.8161]
[1746223255680,13.34535942,1837.9,1837.8,0.8161]
[1746223255879,10.8894,1837.9,1837.8,1.90386]
[1746223256083,10.8894,1837.9,1837.8,3.49606]
[1746223256887,11.9771,1837.9,1837.8,3.49606]
[1746223257387,10.8894,1837.9,1837.8,3.49606]
[1746223257686,11.9771,1837.9,1837.8,3.49606]
[1746223258485,10.8894,1837.9,1837.8,3.49606]
[1746223258786,11.9771,1837.9,1837.8,3.49606]
[1746223259388,10.8894,1837.9,1837.8,3.49606]
[1746223260590,4.29543,1838.1,1837.8,2.4083]
[1746223260791,5.66368942,1838.1,1838.0,1.08764]
[1746223261092,16.55308942,1838.1,1838.0,1.08764]
[1746223261385,1.0877,1837.9,1837.8,0.8161]
[1746223261589,16.55315942,1837.9,1837.8,0.8161]
[1746223262194,1.08776,1837.8,1837.7,0.1936]
[1746223262490,1.08782,1837.7,1837.6,1.08788]
[1746223262689,1.08782,1837.7,1837.6,1.90408]
[1746223262894,13.34547942,1837.7,1837.6,1.90408]
[1746223263403,1.08788,1837.6,1837.5,0.1936]
[1746223263581,13.34553942,1837.6,1837.5,0.1936]
[1746223263785,1.08806,1837.3,1837.2,1.08807]
[1746223264696,3.2078,1837.5,1837.1,2.91403]
[1746223264895,13.34571942,1837.4,1837.3,1.088]
[1746223265288,11.97746,1837.4,1837.3,1.088]
[1746223265685,1.08806,1837.3,1837.2,2.69647]
[1746223265885,11.97746,1837.3,1837.2,2.69647]
[1746223266095,1.08806,1837.3,1837.2,2.69647]
[1746223266495,1.08806,1837.3,1837.2,1.08807]
[1746223267192,2.03645,1837.4,1837.3,1.08806]
[1746223267397,3.2078,1837.5,1837.4,1.088]
[1746223267600,3.2078,1837.5,1837.4,2.7752]
[1746223267893,3.2078,1837.8,1837.5,2.71986]
[1746223268089,3.2078,1837.8,1837.7,1.08782]
[1746223268090,10.8894,1837.8,1837.7,1.08782]
[1746223268289,2.03612,1837.9,1837.8,1.08776]
[1746223268493,3.40437942,1837.9,1837.8,1.08776]
[1746223268694,14.29377942,1837.9,1837.8,1.08776]
[1746223268891,12.25765942,1837.9,1837.8,2.77496]
[1746223270199,10.8894,1837.9,1837.8,2.77496]
[1746223270798,2.79812,1838.1,1838.0,1.08764]
[1746223270999,3.2078,1838.2,1838.1,1.08759]
[1746223271294,1.36825942,1838.2,1838.1,1.08759]
[1746223271499,13.34518942,1838.2,1838.1,1.08759]
[1746223271895,12.25765942,1838.2,1838.1,1.08759]
[1746223272296,3.58725123,1838.3,1838.2,1.08753]
[1746223272501,3.58725123,1838.3,1838.2,4.63553]
[1746223272893,3.58725123,1838.3,1838.2,5.58023]
[1746223273298,3.58725123,1838.3,1838.2,8.78803]
[1746223274201,1.5881,1838.6,1838.5,1.08735]
[1746223274691,12.4775,1838.6,1838.5,1.08735]
[1746223274893,14.93304942,1838.6,1838.5,1.08735]
[1746223275497,13.84575942,1838.6,1838.5,1.08735]
[1746223277901,12.25765942,1838.6,1838.5,1.08735]
[1746223278901,3.2078,1838.7,1838.6,1.08729]
[1746223279292,15.46545942,1838.7,1838.6,1.08729]
[1746223279706,2.06956,1839.0,1838.9,1.08711]
[1746223279905,2.06955,1839.0,1838.9,1.08711]
[1746223280105,15.99600942,1839.0,1838.9,1.08711]
[1746223280305,14.90895942,1839.0,1838.9,1.08711]
[1746223280494,12.25765942,1839.0,1838.9,1.08711]
[1746223280699,6.79505123,1839.1,1839.0,1.08705]
[1746223281296,6.79505123,1839.1,1839.0,2.69005]
[1746223282305,3.58725123,1839.1,1839.0,2.69005]
[1746223283599,3.58725123,1839.1,1839.0,5.89785]
[1746223284193,3.58725123,1839.1,1839.0,10.89785]
[1746223285399,5.36338772,1839.2,1839.1,1.08699]
[1746223285605,5.36338772,1839.2,1839.1,4.66999]
[1746223285908,5.36338772,1839.2,1839.1,9.66999]
[1746223286500,6.11008796,1839.3,1839.2,1.08693]
[1746223286697,6.11008796,1839.3,1839.2,5.91913]
[1746223286900,6.11008796,1839.3,1839.2,10.91913]
[1746223288612,8.85980429,1839.5,1839.4,1.08682]
[1746223288808,8.85980429,1839.5,1839.4,7.87762]
[1746223289411,8.85980429,1839.5,1839.4,10.45922]
[1746223292210,2.83289,1839.8,1839.7,1.08664]
[1746223292410,13.72229,1839.8,1839.7,4.66864]
[1746223292611,15.09054942,1839.8,1839.7,4.66864]
[1746223294216,15.09053942,1839.8,1839.7,4.66864]
[1746223294515,14.00395942,1839.8,1839.7,4.66864]
[1746223294711,1.36825942,1839.8,1839.7,4.66864]
[1746223295316,1.36825942,1839.8,1839.7,6.36004]
[1746223296416,1.7023,1839.9,1839.7,6.36004]
[1746223296417,1.7023,1839.9,1839.8,1.08658]
[1746223296611,3.07055942,1839.9,1839.8,2.77798]
[1746223298318,3.2078,1840.0,1839.9,1.08652]
[1746223298521,14.0972,1840.0,1839.9,2.72802]
[1746223298720,15.46545942,1840.0,1839.9,2.72802]
[1746223299024,17.07115942,1840.0,1839.9,2.72802]
[1746223299223,18.15761942,1840.0,1839.9,2.72802]
[1746223300323,18.15761942,1840.0,1839.9,1.08652]
[1746223302126,17.07115942,1840.0,1839.9,1.08652]
[1746223302612,18.15761942,1840.0,1839.9,1.08652]
[1746223302925,17.07115942,1840.0,1839.9,1.08652]
[1746223303118,18.15761942,1840.0,1839.9,1.08652]
[1746223303425,17.07115942,1840.0,1839.9,1.08652]
[1746223304024,13.86335942,1840.0,1839.9,1.08652]
[1746223304225,6.13508,1840.2,1840.1,1.0864]
[1746223304521,6.04513942,1840.2,1840.1,1.0864]
[1746223304723,16.93453942,1840.2,1840.1,1.0864]
[1746223305423,20.14233942,1840.2,1840.1,1.0864]
[1746223305827,19.05595942,1840.2,1840.1,1.0864]
[1746223306219,20.14229942,1840.2,1840.1,1.0864]
[1746223311130,19.05595942,1840.2,1840.1,1.0864]
[1746223311326,2.71532,1840.6,1840.5,1.08611]
[1746223311327,1.08615,1840.6,1840.5,1.08611]
[1746223311628,10.8894,1840.5,1840.2,2.6804]
[1746223311830,10.8894,1840.5,1840.1,1.08634]
[1746223311831,12.25765942,1840.2,1840.1,1.08634]
[1746223312131,1.08652,1839.9,1839.8,4.65751]
[1746223312329,13.34417942,1839.9,1839.8,4.65751]
[1746223312719,15.06737942,1839.9,1839.8,1.08651]
[1746223312919,13.98085942,1839.9,1839.8,1.08651]
[1746223313125,1.7232,1839.9,1839.8,1.08651]
[1746223313521,12.6126,1839.9,1839.8,1.08651]
[1746223314032,13.69912,1839.9,1839.8,1.08651]
[1746223314238,12.6126,1839.9,1839.8,1.08651]
[1746223314732,13.69912,1839.9,1839.8,1.08651]
[1746223315230,1.08658,1839.8,1839.7,1.0076]
[1746223315419,19.20303942,1839.8,1839.7,1.0076]
[1746223315622,2.71673,1839.7,1839.2,3.2078]
[1746223315826,1.08697,1839.2,1839.1,1.08697]
[1746223316232,13.34462942,1839.2,1839.1,1.08697]
[1746223316432,15.46545942,1839.2,1838.8,12.72910363]
[1746223316639,1.36825942,1839.0,1838.9,1.08711]
[1746223317133,14.00675942,1839.0,1838.9,1.08711]
[1746223317736,15.09380942,1839.0,1838.9,1.08711]
[1746223318436,3.2078,1839.2,1839.1,1.08699]
[1746223318638,3.2078,1839.6,1839.4,1.08678]
[1746223318935,1.08676,1839.5,1839.4,1.08678]
[1746223319128,1.08682,1839.4,1839.2,1.5844]
[1746223319334,1.08697,1839.2,1839.1,4.65798]
[1746223319524,13.34462942,1839.2,1839.1,4.65798]
[1746223319728,15.86522942,1839.2,1839.1,3.571]
[1746223320231,14.77825942,1839.2,1838.9,1.0871]
[1746223320535,13.34472942,1839.0,1838.9,1.0871]
[1746223321135,12.25765942,1839.0,1838.9,1.0871]
[1746223321535,4.1497,1839.2,1839.1,1.08699]
[1746223321536,0.9419,1839.2,1839.1,1.08699]
[1746223321748,2.31015942,1839.2,1839.1,1.08699]
[1746223321930,14.77825942,1839.2,1839.1,1.08699]
[1746223322633,6.7788,1839.5,1839.4,1.08682]
[1746223322837,7.86559,1839.5,1839.4,1.08682]
[1746223323035,1.08683,1839.4,1839.3,1.08684]
[1746223323234,1.08688,1839.3,1839.2,1.08689]
[1746223323432,1.08688,1839.3,1838.6,3.2078]
[1746223323433,2.71749,1839.1,1838.6,3.2078]
[1746223323639,1.08723,1838.7,1838.6,1.08724]
[1746223323840,1.08729,1838.6,1838.5,7.17080363]
[1746223324140,19.07804942,1838.6,1838.5,7.17080363]
[1746223324439,17.99075942,1838.6,1838.5,8.25815363]
[1746223324740,14.78295942,1838.6,1838.5,8.25815363]
[1746223325137,3.2078,1838.8,1838.7,1.08723]
[1746223325333,6.16195942,1838.8,1838.7,1.08723]
[1746223325530,17.05135942,1838.8,1838.7,1.08723]
[1746223325934,17.05135942,1838.8,1838.7,2.81783]
[1746223326937,3.2278,1839.5,1839.4,1.08682]
[1746223327141,3.2278,1839.5,1838.7,3.2078]
[1746223327142,1.36825942,1838.9,1838.7,3.2078]
[1746223327342,4.29491,1838.9,1838.8,1.08717]
[1746223327533,1.08717,1838.8,1838.7,1.08718]
[1746223327735,2.97797,1838.8,1838.7,1.08718]
[1746223327938,19.14845942,1838.8,1838.3,10.37860363]
[1746223328137,12.25765942,1838.4,1838.3,9.98887363]
[1746223328333,12.25765942,1838.6,1838.5,1.08735]
[1746223328642,1.08705,1839.1,1839.0,1.08705]
[1746223329245,13.34470942,1839.1,1839.0,1.08705]
[1746223329438,17.25765942,1839.1,1838.6,0.9912]
[1746223329643,13.34490942,1838.7,1838.6,1.08724]
[1746223330237,12.25765942,1838.7,1838.6,1.08724]
[1746223330437,3.2078,1838.9,1838.8,1.08717]
[1746223330744,1.0052,1839.0,1838.9,1.08711]
[1746223331041,13.26285942,1839.0,1838.9,1.08711]
[1746223332635,0.11774,1839.1,1838.8,4.8035]
[1746223332840,0.11774,1839.1,1838.7,1.9101]
[1746223332841,13.34481942,1838.9,1838.7,1.9101]
[1746223333040,3.0771,1839.0,1838.9,1.08711]
[1746223333247,3.2078,1839.2,1839.1,1.08699]
[1746223333545,15.46545942,1839.2,1839.1,1.08699]
[1746223333941,15.46545942,1839.2,1839.1,3.80299]
[1746223334141,12.25765942,1839.2,1839.1,3.80299]
[1746223335447,3.2078,1839.6,1839.5,1.08676]
[1746223335749,15.46545942,1839.6,1839.5,1.08676]
[1746223336346,12.25765942,1839.6,1839.5,2.79176]
[1746223336645,12.25765942,1839.6,1839.5,3.73516]
[1746223336848,20.46545942,1839.6,1839.1,2.71749]
[1746223337053,12.25765942,1839.5,1839.4,1.08682]
[1746223337256,10.8894,1839.5,1839.4,1.08682]
[1746223337543,1.08672,1839.6,1839.3,6.29097]
[1746223337744,5.74604,1839.8,1839.3,6.29097]
[1746223337745,12.25765942,1839.5,1839.4,2.77542]
[1746223338151,1.08665,1839.7,1839.6,1.08666]
[1746223338344,3.18867,1839.8,1839.7,1.08664]
[1746223338544,13.96033,1839.8,1839.7,1.08664]
[1746223338745,1.08673,1839.6,1839.5,1.08672]
[1746223338951,11.97613,1839.6,1839.5,1.08672]
[1746223339251,13.34438942,1839.6,1839.5,1.08672]
[1746223339441,12.25765942,1839.6,1839.5,1.08672]
[1746223339644,13.93225942,1839.6,1839.5,1.08672]
[1746223340153,1.08676,1839.5,1839.4,1.6886]
[1746223340347,1.08676,1839.5,1839.3,0.5395]
[1746223340348,1.08682,1839.4,1839.3,0.5395]
[1746223340548,15.29287942,1839.4,1839.3,0.5395]
[1746223340750,1.08691,1839.3,1839.2,1.0869]
[1746223341043,2.67121,1839.3,1839.2,1.0869]
[1746223341252,14.92886942,1839.3,1839.2,1.0869]
[1746223341552,1.08693,1839.2,1839.1,2.78595]
[1746223341750,14.92888942,1839.2,1839.1,1.08695]
[1746223342053,14.92888942,1839.2,1838.9,0.5396]
[1746223342054,1.08705,1839.0,1838.9,0.5396]
[1746223342245,1.08717,1838.8,1838.7,1.08722]
[1746223342445,16.55264942,1838.8,1838.7,1.08717]
[1746223342947,18.13694942,1838.8,1838.7,1.08717]
[1746223343856,18.13694942,1838.8,1838.7,1.08723]
[1746223344055,3.2078,1838.8,1838.7,1.08723]
[1746223344451,4.9118,1839.1,1839.0,1.08705]
[1746223345052,3.2078,1839.1,1839.0,1.08705]
[1746223345248,1.08694,1839.2,1839.1,1.08699]
[1746223345441,4.29474,1839.2,1839.1,1.08699]
[1746223345646,13.34459942,1839.2,1839.1,1.08699]
[1746223346450,2.6602,1839.3,1839.2,1.08693]
[1746223346752,12.25765942,1839.2,1839.1,1.08695]
[1746223346945,1.36825942,1839.2,1839.1,2.79395]
[1746223347146,3.74712,1839.3,1839.2,1.08693]
[1746223347446,3.74712,1839.3,1839.2,2.79393]
[1746223347649,16.00477942,1839.3,1839.2,2.79393]
[1746223352455,14.91785942,1839.3,1839.2,2.79393]
[1746223353452,10.8894,1839.3,1839.2,2.79393]
[1746223353652,13.34453942,1839.3,1839.2,1.707]
[1746223353858,18.19163942,1839.3,1839.2,1.707]
[1746223354058,18.19163942,1839.3,1839.2,2.79393]
[1746223354760,1.08699,1839.2,1839.1,1.08697]
[1746223354951,3.72459,1839.2,1839.1,1.08697]
[1746223355147,14.89525942,1839.2,1839.1,1.08697]
[1746223355347,13.25595942,1839.2,1839.1,1.08697]
[1746223355757,10.8894,1839.2,1839.1,1.08697]
[1746223355950,0.9658,1839.4,1839.3,1.08688]
[1746223356151,13.34447942,1839.4,1839.3,1.08688]
[1746223356659,13.34447942,1839.4,1839.3,2.73548]
[1746223356959,10.8894,1839.4,1839.3,2.73548]
[1746223357155,1.7016,1839.5,1839.3,1.6486]
[1746223357359,13.34447942,1839.4,1839.3,1.08683]
[1746223357861,1.08682,1839.4,1839.3,1.08683]
[1746223358458,11.97622,1839.4,1839.3,1.08688]
[1746223358664,1.08688,1839.3,1839.2,2.08949]
[1746223358851,15.04613942,1839.3,1839.2,2.08949]
[1746223359862,1.08693,1839.2,1839.1,4.73095]
[1746223360059,14.98418942,1839.2,1839.1,4.73095]
[1746223360255,13.61593,1839.2,1839.1,4.73095]
[1746223360659,12.529,1839.2,1839.1,4.73095]
[1746223360962,13.61593,1839.2,1839.1,4.73095]
[1746223361561,12.529,1839.2,1839.1,4.73095]
[1746223362961,13.61593,1839.2,1839.1,4.73095]
[1746223363355,12.529,1839.2,1839.1,4.73095]
[1746223363766,13.89725942,1839.2,1839.1,4.73095]
[1746223364564,14.98418942,1839.2,1839.1,4.73095]
[1746223365260,13.89725942,1839.2,1839.1,4.73095]
[1746223365662,14.98418942,1839.2,1839.1,4.73095]
[1746223367565,14.98418942,1839.2,1839.1,1.08695]
[1746223367859,1.08699,1839.1,1839.0,1.62635]
[1746223368055,19.10144942,1839.1,1839.0,1.62635]
[1746223369356,12.25765942,1839.1,1839.0,1.62635]
[1746223369560,1.08691,1839.3,1839.2,1.08688]
[1746223369761,2.45516942,1839.3,1839.2,1.08688]
[1746223369964,14.92746942,1839.3,1839.2,1.08688]
[1746223370352,14.92746942,1839.3,1839.1,1.7294]
[1746223370553,11.97633,1839.2,1839.1,2.81636]
[1746223370954,1.08693,1839.2,1839.1,2.81636]
[1746223372563,1.08699,1839.1,1839.0,0.5393]
[1746223372767,20.09704942,1839.1,1839.0,0.5393]
[1746223373062,3.32554,1839.4,1839.2,1.08688]
[1746223373266,13.34464942,1839.1,1839.0,0.5393]
[1746223373466,13.34464942,1839.1,1839.0,1.62631]
[1746223374164,12.25765942,1839.1,1839.0,1.62631]
[1746223374465,13.34464942,1839.1,1839.0,1.62631]
[1746223375063,6.89251,1839.3,1839.1,1.08699]
[1746223375064,4.1753,1839.3,1839.1,1.08699]
[1746223375367,2.03049,1839.5,1839.4,1.08682]
[1746223375669,3.39874942,1839.5,1839.4,1.08682]
[1746223375967,14.28814942,1839.5,1839.4,1.08682]
[1746223376967,13.34444942,1839.5,1839.4,1.08682]
[1746223381367,14.97474942,1839.5,1839.4,1.08682]
[1746223382571,1.08682,1839.4,1839.3,2.78725]
[1746223382768,11.97622,1839.4,1839.3,2.78725]
[1746223382968,1.08682,1839.4,1839.3,2.78725]
[1746223383272,0.54788,1839.3,1839.2,1.0009]
[1746223383570,1.08693,1839.2,1839.1,8.25779363]
[1746223383867,16.55238942,1839.2,1839.1,8.25779363]
[1746223384067,16.55238942,1839.2,1839.1,9.17989363]
[1746223384863,3.69331,1839.3,1839.1,9.17989363]
[1746223385066,5.06156942,1839.3,1839.2,2.06523]
[1746223385565,1.08679,1839.5,1839.4,1.08682]
[1746223385773,13.34444942,1839.5,1839.4,1.08682]
[1746223387580,1.08688,1839.4,1839.3,1.08683]
[1746223387879,2.71734,1839.2,1838.9,10.81480363]
[1746223388066,17.53990942,1839.1,1839.0,1.08701]
[1746223388378,19.25920942,1839.1,1839.0,11.85570938]
[1746223388878,19.25920942,1839.1,1839.0,10.76869938]
[1746223389077,22.95520942,1839.1,1839.0,10.76869938]
[1746223389974,27.95520942,1839.1,1839.0,10.76869938]
[1746223390483,22.95520942,1839.1,1839.0,10.76869938]
[1746223390674,27.95520942,1839.1,1839.0,10.76869938]
[1746223393276,2.71771,1839.0,1838.6,1.08724]
[1746223393485,5.66328942,1838.7,1838.6,1.08724]
[1746223393680,1.08729,1838.6,1838.5,2.04632]
[1746223393879,11.97669,1838.6,1838.5,2.04632]
[1746223394081,1.08729,1838.6,1838.5,2.04632]
[1746223395284,2.73769,1838.6,1838.5,2.04632]
[1746223396987,13.62709,1838.6,1838.5,2.04632]
[1746223397180,13.62709,1838.6,1838.5,0.959]
[1746223397381,13.90805942,1838.6,1838.3,5.66283]
[1746223397683,11.97681,1838.4,1838.3,2.99203]
[1746223398076,1.08741,1838.4,1838.3,2.99203]
[1746223398480,11.97681,1838.4,1838.3,1.9046]
[1746223398676,13.34506942,1838.4,1838.3,2.06067]
[1746223398980,11.97681,1838.4,1838.3,2.06067]
[1746223399781,1.08717,1838.9,1838.8,1.08712]
[1746223399983,2.45547942,1838.8,1838.7,1.08718]
[1746223400186,13.34487942,1838.8,1838.7,2.04978]
[1746223400382,1.08722,1838.8,1838.7,2.04978]
[1746223401290,1.08723,1838.7,1838.6,2.69158]
[1746223401485,16.55268942,1838.7,1838.6,2.69158]
[1746223402290,13.34488942,1838.7,1838.6,2.69158]
[1746223403086,1.36825942,1838.7,1838.6,5.89938]
[1746223403382,0.9377,1838.9,1838.7,1.08719]
[1746223403383,1.08723,1838.8,1838.7,1.08719]
[1746223403587,2.45548942,1838.7,1838.6,2.69156]
[1746223403784,13.34488942,1838.7,1838.6,1.6043]
[1746223404089,18.28748942,1838.7,1838.6,1.6043]
[1746223405288,1.08729,1838.6,1838.5,2.07515]
[1746223405489,13.34494942,1838.6,1838.5,3.74915]
[1746223407386,1.08741,1838.4,1838.3,3.633]
[1746223407579,13.34506942,1838.4,1838.3,1.674]
[1746223407980,15.99556942,1838.4,1838.3,1.674]
[1746223408188,17.62680942,1838.4,1838.0,1.0876]
[1746223408385,1.08753,1838.2,1838.1,1.6845]
[1746223408890,13.34518942,1838.2,1838.1,1.6845]
[1746223409091,13.34518942,1838.2,1838.1,2.77209]
[1746223409388,13.34518942,1838.2,1838.1,1.6845]
[1746223409589,13.34518942,1838.2,1838.1,2.77209]
[1746223410387,1.0874,1838.5,1838.4,1.08735]
[1746223410691,13.34511942,1838.4,1838.3,1.08742]
[1746223411785,4.2952,1838.5,1838.4,1.08741]
[1746223411990,13.34512942,1838.4,1838.3,2.07985]
[1746223412191,13.34512942,1838.4,1838.3,3.69245]
[1746223412381,1.08747,1838.4,1838.3,3.69245]
[1746223412586,4.29518,1838.5,1838.4,1.08735]
[1746223412786,1.08734,1838.6,1838.5,1.0873]
[1746223412981,3.2078,1838.7,1838.6,1.08729]
[1746223413695,4.29503,1838.7,1838.6,2.02489]
[1746223414289,3.59681305,1839.0,1838.9,1.08711]
[1746223414489,4.96507247,1839.0,1838.9,1.08711]
[1746223414683,3.59681305,1839.0,1838.9,1.08711]
[1746223415088,3.59681305,1839.0,1838.9,2.78111]
[1746223416995,1.08704,1839.1,1839.0,1.08702]
[1746223417183,1.08704,1839.1,1839.0,3.67972]
[1746223417591,1.08698,1839.2,1839.1,1.08696]
[1746223417797,13.34463942,1839.2,1839.1,2.72696]
[1746223421199,13.34463942,1839.2,1839.1,1.64]
[1746223421399,16.55243942,1839.2,1839.1,2.72699]
[1746223421705,16.55243942,1839.2,1839.1,1.64]
[1746223423395,1.08711,1838.9,1838.8,2.06951]
[1746223423595,13.34476942,1838.9,1838.8,2.06951]
[1746223423802,1.08709,1839.0,1838.9,1.08711]
[1746223424001,13.34474942,1839.0,1838.9,1.08711]
[1746223424194,1.08709,1839.0,1838.9,1.08711]
[1746223425200,1.08709,1839.0,1838.9,2.75011]
[1746223425601,13.34474942,1839.0,1838.9,1.663]
[1746223425901,14.33394942,1839.0,1838.9,2.75011]
[1746223426103,16.04174942,1839.0,1838.9,2.75011]
[1746223427500,14.95465942,1839.0,1838.7,2.00509]
[1746223427803,1.08723,1838.7,1838.6,2.6684]
[1746223428003,1.36825942,1838.7,1838.6,3.75569]
[1746223428200,3.2078,1838.9,1838.8,1.08717]
[1746223428390,15.18431,1838.9,1838.8,1.08717]
[1746223428697,1.08717,1838.8,1838.7,3.6979]
[1746223428999,1.08723,1838.7,1838.6,2.09394]
[1746223429202,13.34488942,1838.7,1838.6,2.651]
[1746223429503,15.02618942,1838.7,1838.6,3.73829]
[1746223433303,15.02618942,1838.7,1838.1,6.54393534]
[1746223433304,13.34518942,1838.2,1838.1,6.54393534]
[1746223433508,13.34518942,1838.2,1837.8,14.37380728]
[1746223433509,1.08759,1838.1,1838.0,10.76869938]
[1746223433703,17.01614942,1838.1,1838.0,10.76869938]
[1746223434202,20.71214942,1838.1,1838.0,10.76869938]
[1746223435503,24.34214942,1838.1,1838.0,10.76869938]
[1746223438101,20.64614942,1838.1,1838.0,10.76869938]
[1746223438713,1.08764,1838.0,1837.9,1.7062]
[1746223438911,18.28939942,1838.0,1837.9,1.7062]
[1746223441912,12.25765942,1837.6,1837.1,13.99649938]
[1746223442209,13.34577942,1837.2,1837.0,14.37380728]
[1746223442412,13.34577942,1837.2,1837.0,10.85396409]
[1746223442413,16.55363942,1837.1,1837.0,10.85396409]
[1746223442811,16.55363942,1837.1,1837.0,12.57106409]
[1746223443207,20.24963942,1837.1,1837.0,12.57106409]
[1746223444114,16.55363942,1837.1,1837.0,12.57106409]
[1746223446409,16.55363942,1837.1,1837.0,13.55726409]
[1746223447818,15.46545942,1837.1,1836.5,4.29632]
[1746223448122,4.2961,1836.9,1836.8,1.6543]
[1746223449914,4.2961,1836.9,1836.8,2.6329]
[1746223453720,1.0883,1836.9,1836.8,2.6329]
[1746223454722,1.0883,1836.9,1836.8,3.72126]
[1746223454919,1.0883,1836.9,1836.8,2.6329]
[1746223455119,1.0883,1836.9,1836.8,3.72126]
[1746223455823,1.0883,1836.9,1836.8,2.6329]
[1746223456018,1.0883,1836.9,1836.8,3.72126]
[1746223457423,1.0883,1836.9,1836.8,2.6329]
[1746223457619,1.0883,1836.9,1836.8,3.72126]
[1746223459128,1.0883,1836.9,1836.8,2.6329]
[1746223459316,1.0883,1836.9,1836.8,3.72126]
[1746223465030,1.08845,1836.7,1836.5,0.9823]
[1746223465327,4.29616,1836.8,1836.7,1.6773]
[1746223465821,16.55381942,1836.8,1836.7,1.6773]
[1746223466015,17.50901942,1836.8,1836.7,1.6773]
[1746223466220,19.15191942,1836.8,1836.7,1.6773]
[1746223468824,1.08847,1836.6,1836.5,2.07078]
[1746223469330,4.29627,1836.6,1836.5,0.9823]
[1746223471835,5.66452942,1836.6,1836.5,0.9823]
[1746223473223,1.08853,1836.5,1836.4,1.7213]
[1746223473427,14.98898942,1836.5,1836.4,1.7213]
[1746223473734,4.09958942,1836.5,1836.4,1.7213]
[1746223475323,5.06178942,1836.5,1836.4,1.7213]
[1746223477131,5.06178942,1836.5,1836.4,2.80989]
[1746223477539,5.06178942,1836.5,1836.4,1.7213]
[1746223477832,5.06178942,1836.5,1836.4,2.80989]
[1746223478339,1.08853,1836.5,1836.4,2.80989]
[1746223479338,1.08859,1836.4,1836.3,3.661]
[1746223479639,4.29639,1836.4,1836.3,6.39531]
[1746223479944,5.94919,1836.4,1836.3,6.39531]
[1746223480235,7.31744942,1836.4,1836.3,1.6457]
[1746223480435,16.55404942,1836.4,1836.3,2.73435]
[1746223480637,13.34624942,1836.4,1836.3,2.73435]
[1746223483240,16.55404942,1836.4,1836.3,2.73435]
[1746223483438,1.08865,1836.3,1836.2,1.9502]
[1746223483634,2.45690942,1836.3,1836.2,2.04851]
[1746223483942,1.08865,1836.3,1836.2,2.04851]
[1746223484440,2.77685,1836.3,1836.2,3.75141]
[1746223485242,2.77685,1836.3,1836.2,2.6627]
[1746223485442,2.77685,1836.3,1836.2,3.75141]
[1746223485742,4.14510942,1836.3,1836.2,2.6627]
[1746223485942,4.14510942,1836.3,1836.2,3.75141]
[1746223486540,4.14510942,1836.3,1836.2,2.6627]
[1746223487137,1.08871,1836.2,1836.1,1.0072]
[1746223487441,5.08166942,1836.2,1836.1,2.09597]
[1746223487644,3.71341,1836.2,1836.1,2.09597]
[1746223487941,3.71341,1836.2,1836.1,3.79107]
[1746223488444,19.17886942,1836.2,1836.1,1.6951]
[1746223489444,19.17886942,1836.2,1836.1,2.78387]
[1746223490046,19.17886942,1836.2,1836.1,1.6951]
[1746223490340,19.17886942,1836.2,1836.1,2.78387]
[1746223491042,19.17886942,1836.2,1836.1,1.6951]
[1746223491436,1.08907,1835.6,1835.5,14.43319703]
[1746223491632,16.55452942,1835.6,1835.5,14.41319703]
[1746223492440,18.28462942,1835.6,1835.5,14.41319703]
[1746223492838,1.08913,1835.5,1835.4,14.41319703]
[1746223493043,15.07688942,1835.5,1835.4,14.41319703]
[1746223493945,15.07688942,1835.5,1835.4,15.50238703]
[1746223494145,15.07688942,1835.5,1835.4,14.41319703]
[1746223494341,15.07688942,1835.5,1835.4,16.06009703]
[1746223495444,15.07688942,1835.5,1835.4,17.14928703]
[1746223496348,15.07688942,1835.5,1835.4,16.06009703]
[1746223496849,15.07688942,1835.5,1835.4,1.6469]
[1746223498550,15.07688942,1835.5,1835.4,2.73609]
[1746223498751,15.07688942,1835.5,1835.4,1.6469]
[1746223499850,15.07688942,1835.5,1835.4,2.73609]
[1746223500539,15.07688942,1835.5,1835.4,1.6469]
[1746223500745,15.07688942,1835.5,1835.4,2.73609]
[1746223500948,15.07688942,1835.5,1835.4,1.6469]
[1746223501445,1.08919,1835.4,1835.3,1.08924]
[1746223501650,13.34684942,1835.4,1835.3,1.08924]
[1746223501842,1.08919,1835.4,1835.3,1.08924]
[1746223502450,1.08924,1835.3,1835.2,2.0122]
[1746223502744,5.9302,1835.8,1835.2,4.73534]
[1746223502953,13.34672942,1835.6,1835.5,1.0891]
[1746223503343,2.45732942,1835.6,1835.2,7.36083]
[1746223503552,11.97858,1835.5,1835.4,1.08914]
[1746223503753,13.61318,1835.5,1835.4,1.08914]
[1746223504046,14.98143942,1835.5,1835.4,1.08914]
[1746223504849,4.29692,1835.6,1835.5,1.08913]
[1746223505054,4.57605942,1835.6,1835.5,1.08913]
[1746223506353,5.66512942,1835.6,1835.5,1.08913]
[1746223507448,16.55452942,1835.6,1835.5,1.08913]
[1746223507649,15.46545942,1835.6,1835.5,1.08913]
[1746223508354,16.55452942,1835.6,1835.5,1.08913]
[1746223508551,15.46545942,1835.6,1835.5,1.08913]
[1746223508945,3.2078,1835.6,1835.5,1.08913]
[1746223512656,4.29687,1835.6,1835.5,1.08913]
[1746223513356,3.2078,1835.6,1835.5,1.08913]
[1746223514860,3.2078,1835.8,1835.7,1.08901]
[1746223515158,15.46545942,1835.8,1835.7,1.08901]
[1746223515457,4.57605942,1835.8,1835.7,1.08901]
[1746223515651,1.36825942,1835.8,1835.7,1.08901]
[1746223517152,5.8526,1836.0,1835.9,1.08889]
[1746223517458,17.83083,1836.0,1835.9,1.08889]
[1746223517757,18.11025942,1836.0,1835.9,1.08889]